bitfinex-derivatives/quotes_ETHF0:USTF0_20250115
["timestamp","ask_amount","ask_price","bid_price","bid_amount"]
[1736905818842,3.36461052,3236.0,3235.8,40.8]
[1736905819841,0.30917,3235.9,3235.2,3.2078]
[1736905820139,2.42026619,3235.4,3234.8,3.2078]
[1736905820440,0.30926,3234.9,3234.8,3.2078]
[1736905820937,3.69139319,3234.9,3234.8,3.2078]
[1736905821641,3.38213319,3234.9,3234.2,40.8]
[1736905821842,2.42026619,3234.7,3234.2,40.8]
[1736905822040,0.7779,3234.6,3234.2,40.8]
[1736905822235,0.30931,3234.5,3234.2,40.8]
[1736905822435,4.3594408,3234.6,3234.2,40.8]
[1736905822743,0.30934,3234.1,3234.0,3.2078]
[1736905822944,2.72960619,3234.1,3234.0,3.2078]
[1736905823142,6.27878955,3234.1,3234.0,3.2078]
[1736905823544,0.30937,3233.8,3233.6,3.2078]
[1736905823935,3.85856336,3233.7,3233.6,3.2078]
[1736905824343,3.24255728,3234.0,3233.6,3.2078]
[1736905824544,3.24255728,3233.7,3233.6,3.2078]
[1736905824744,3.24255728,3233.7,3233.6,3.51719]
[1736905825042,0.4845,3233.9,3233.6,3.2078]
[1736905825239,0.30937,3233.8,3233.7,40.8]
[1736905825546,6.24927956,3233.8,3233.7,40.8]
[1736905825743,6.71017956,3233.8,3233.7,40.8]
[1736905826044,6.71017956,3233.8,3233.0,0.0056]
[1736905826045,0.30941,3233.4,3233.2,3.2078]
[1736905826236,2.72968619,3233.3,3233.2,3.2078]
[1736905826542,0.30943,3233.2,3232.9,40.8]
[1736905826748,0.483,3233.2,3232.9,40.8]
[1736905826939,2.42026619,3233.0,3232.9,40.8]
[1736905827341,5.88638565,3233.0,3232.9,40.8]
[1736905828065,3.46611946,3233.0,3232.9,41.10945]
[1736905828266,3.46611946,3233.0,3232.9,40.8]
[1736905828445,3.43274438,3233.1,3232.9,40.8]
[1736905828650,0.79243,3233.2,3232.9,40.8]
[1736905829049,3.23641899,3233.1,3232.9,40.8]
[1736905829267,3.54585899,3233.1,3232.9,40.8]
[1736905829666,3.23641899,3233.1,3232.9,41.10945]
[1736905830446,3.23641899,3233.1,3232.9,40.8]
[1736905831949,3.54585899,3233.1,3232.9,40.8]
[1736905832542,0.30944,3233.0,3232.9,40.8]
[1736905833044,3.83658563,3233.0,3232.9,40.8]
[1736905834042,3.52714563,3233.0,3232.9,41.10945]
[1736905834347,3.52714563,3233.0,3232.9,40.8]
[1736905834747,3.52714563,3233.0,3232.9,41.10945]
[1736905835751,3.52714563,3233.0,3232.9,40.8]
[1736905835948,3.83658563,3233.0,3232.9,40.8]
[1736905836746,6.25685182,3233.0,3232.9,40.8]
[1736905836951,6.25685182,3233.0,3232.7,3.2078]
[1736905836952,5.94741182,3233.0,3232.7,3.2078]
[1736905837153,5.94741182,3233.0,3232.5,0.002]
[1736905837349,2.72974619,3232.6,3232.5,0.002]
[1736905837846,5.9499881,3232.6,3232.5,0.002]
[1736905838057,5.6405081,3232.6,3232.5,0.002]
[1736905838253,6.9985081,3232.6,3232.5,0.002]
[1736905839159,3.22024191,3232.6,3232.5,0.002]
[1736905839544,3.77826619,3232.7,3232.5,0.002]
[1736905839744,3.44279365,3232.6,3232.5,0.002]
[1736905840151,3.44279365,3232.6,3229.9,0.3096]
[1736905840355,3.44279365,3232.6,3228.9,7.971]
[1736905840356,0.3099,3228.3,3228.0,23.86246268]
[1736905840546,11.44724238,3228.1,3227.9,32.10428609]
[1736905840742,3.089,3227.4,3227.1,104.47742522]
[1736905840948,8.35833238,3227.2,3227.1,101.31546522]
[1736905841153,3.5178,3227.2,3227.1,100.25921522]
[1736905841452,6.57384833,3227.2,3227.1,103.35361522]
[1736905841649,3.2078,3227.2,3227.1,144.15361522]
[1736905841849,3.2078,3227.2,3227.1,43.8944]
[1736905841850,3.36604833,3227.2,3227.1,43.8944]
[1736905842151,0.4935,3228.1,3227.1,43.8944]
[1736905842152,3.2078,3228.0,3227.1,43.8944]
[1736905842355,3.2078,3228.0,3227.4,2.95309159]
[1736905842552,3.54826611,3228.0,3227.9,3.0944]
[1736905842853,0.4935,3229.0,3227.9,3.0944]
[1736905842854,3.2078,3228.5,3227.9,3.0944]
[1736905843152,3.2078,3228.5,3227.8,2.95309159]
[1736905843153,12.35162253,3227.9,3227.8,2.95309159]
[1736905843545,12.35162253,3227.9,3227.8,11.04749159]
[1736905843744,7.31494951,3228.8,3227.8,9.35027409]
[1736905844058,3.51771,3228.1,3228.0,1.3971825]
[1736905844558,30.3261222,3228.1,3228.0,1.3971825]
[1736905844752,30.3261222,3228.1,3227.5,1.561]
[1736905844949,30.0162122,3228.1,3227.5,1.561]
[1736905845148,2.95309159,3229.5,3227.5,9.51409159]
[1736905845352,3.2078,3228.8,3227.7,3.2078]
[1736905845552,0.46511774,3228.0,3227.6,1.561]
[1736905845750,0.30995,3227.7,3227.6,1.561]
[1736905846146,0.30995,3227.7,3227.6,40.02266]
[1736905846147,3.7689147,3227.7,3227.6,40.02266]
[1736905846350,0.31001,3227.1,3226.8,1.562]
[1736905846555,0.31001,3227.1,3226.7,3.2078]
[1736905846857,3.4589647,3227.1,3226.8,2.95309159]
[1736905847058,0.31001,3227.1,3226.8,2.95309159]
[1736905847260,3.68673201,3227.1,3227.0,40.802]
[1736905847657,0.31001,3227.1,3227.0,40.802]
[1736905847960,6.07013057,3227.1,3227.0,40.802]
[1736905849152,3.68673201,3227.1,3227.0,40.802]
[1736905850351,3.37672201,3227.1,3227.0,40.802]
[1736905850651,0.31001,3227.1,3227.0,40.802]
[1736905851058,3.76675865,3227.1,3227.0,40.802]
[1736905851862,3.76675865,3227.1,3227.0,1.562]
[1736905853459,3.45674865,3227.1,3227.0,1.562]
[1736905853761,0.31,3227.2,3227.0,1.562]
[1736905853956,0.31,3227.2,3226.8,2.95309159]
[1736905854166,3.25455551,3227.1,3226.9,1.563]
[1736905854365,0.30999,3227.3,3226.9,1.563]
[1736905854565,0.31,3227.2,3227.1,40.8]
[1736905854768,3.56455551,3227.2,3227.1,40.8]
[1736905854968,0.31,3227.2,3227.1,40.8]
[1736905855269,3.79024159,3227.2,3227.1,42.363]
[1736905855668,3.79024159,3227.2,3227.1,40.8]
[1736905855872,3.79024159,3227.2,3227.1,42.363]
[1736905856077,3.79024159,3227.2,3227.1,40.8]
[1736905856373,3.79024159,3227.2,3227.0,1.563]
[1736905856374,3.48024159,3227.2,3227.0,1.563]
[1736905856776,0.31001,3227.1,3227.0,1.563]
[1736905856978,3.48024159,3227.2,3227.0,42.363]
[1736905857276,3.54067032,3227.1,3227.0,42.363]
[1736905857784,0.31,3227.2,3227.0,1.563]
[1736905858078,3.53729123,3227.1,3227.0,1.563]
[1736905858376,0.31004,3226.8,3226.7,3.2078]
[1736905858571,0.31004,3226.8,3226.7,4.7708]
[1736905858769,3.84733123,3226.8,3226.7,45.5708]
[1736905859464,3.53729123,3226.8,3226.7,48.52389159]
[1736905859672,3.2078,3227.8,3226.7,53.52389159]
[1736905859873,2.95309159,3227.7,3226.7,40.8]
[1736905860179,2.95309159,3227.7,3227.0,0.31001]
[1736905860180,0.30998,3227.4,3227.0,0.31001]
[1736905860377,3.57276989,3227.7,3226.9,3.2078]
[1736905860576,3.2078,3227.8,3227.5,0.30997]
[1736905860766,3.46144663,3227.7,3227.6,1.563]
[1736905861077,0.30994,3227.9,3227.6,1.563]
[1736905861267,3.62685008,3227.9,3227.6,1.563]
[1736905861466,0.30994,3227.9,3227.6,1.563]
[1736905861669,3.31691008,3227.8,3227.6,1.563]
[1736905861870,3.31691008,3227.8,3227.7,3.51775]
[1736905862067,3.31691008,3228.2,3227.7,8.2078]
[1736905862272,5.57678316,3229.1,3228.1,3.2078]
[1736905862476,3.27452181,3228.5,3228.2,40.8]
[1736905862675,3.27452181,3228.6,3228.4,3.2078]
[1736905862873,0.20857616,3229.0,3228.8,0.30985]
[1736905863069,2.36898316,3229.1,3228.9,3.2078]
[1736905863267,2.36898316,3229.1,3228.4,3.2078]
[1736905863584,3.67782714,3229.0,3228.9,1.563]
[1736905863776,3.36799714,3229.0,3228.4,3.2078]
[1736905864076,0.30986,3228.6,3228.5,1.563]
[1736905864273,3.36799714,3229.0,3228.5,1.563]
[1736905864479,0.30987,3228.5,3228.4,3.2078]
[1736905864873,3.98239,3229.0,3228.0,3.2078]
[1736905864874,2.95309159,3228.8,3228.0,3.2078]
[1736905865082,3.48781446,3228.5,3228.1,1.563]
[1736905865382,0.30989,3228.4,3228.1,1.563]
[1736905865584,0.30988,3228.5,3228.1,1.87291]
[1736905865876,3.48008681,3228.3,3228.1,1.87291]
[1736905866076,3.5522627,3228.4,3228.1,1.563]
[1736905866379,0.30989,3228.4,3228.1,1.87291]
[1736905866578,3.28830746,3228.3,3228.1,1.87291]
[1736905866967,3.28830746,3228.3,3228.1,1.563]
[1736905867171,3.51838114,3228.4,3228.3,0.30989]
[1736905867373,3.51838114,3228.4,3228.1,1.563]
[1736905867678,0.30989,3228.4,3228.1,1.563]
[1736905867877,2.95309159,3228.8,3228.1,1.563]
[1736905868081,3.82828114,3228.3,3228.1,1.563]
[1736905868282,3.51838114,3228.3,3228.1,1.563]
[1736905868482,0.3099,3228.2,3228.1,1.563]
[1736905868881,0.30991,3228.1,3228.0,4.7708]
[1736905869075,0.30991,3228.2,3228.0,4.7708]
[1736905869276,0.03271311,3228.1,3228.0,4.7708]
[1736905870180,0.34262311,3228.1,3228.0,3.2078]
[1736905870574,3.2078,3228.1,3227.8,1.535]
[1736905870969,6.94730858,3228.1,3227.8,1.535]
[1736905871284,0.58005064,3228.0,3227.8,1.535]
[1736905871474,0.58005064,3228.0,3227.7,48.66810796]
[1736905871674,3.3402582,3227.9,3227.8,1.535]
[1736905871881,3.3402582,3227.9,3227.8,1.84494]
[1736905872379,2.36898316,3228.4,3228.3,0.30989]
[1736905872681,5.92142627,3228.4,3228.3,0.30989]
[1736905873382,2.36898316,3228.5,3228.4,0.30988]
[1736905874079,2.85508316,3229.3,3228.2,3.2078]
[1736905874376,3.41497473,3228.7,3228.6,0.30986]
[1736905874576,3.41497473,3228.7,3228.6,1.84486]
[1736905874782,0.30984,3228.9,3228.7,0.30986]
[1736905875081,3.62509053,3228.7,3228.6,40.8]
[1736905875475,5.30986,3228.7,3228.6,40.8]
[1736905875681,8.31523053,3228.7,3228.5,1.84487]
[1736905875880,3.31523053,3228.7,3228.6,0.30986]
[1736905876283,8.31523053,3228.7,3228.6,0.30986]
[1736905876672,8.31523053,3228.7,3228.6,41.10986]
[1736905878085,3.31523053,3228.7,3228.6,41.10986]
[1736905878279,2.36898316,3229.4,3228.6,44.0078]
[1736905878588,3.23745267,3229.3,3229.2,0.3098]
[1736905879284,5.60643583,3229.3,3229.2,0.3098]
[1736905879481,2.36898316,3229.3,3229.2,0.3098]
[1736905880878,13.79596636,3229.3,3228.7,1.84486]
[1736905881084,0.30982,3229.1,3228.9,0.30983]
[1736905881479,3.57905063,3229.0,3228.9,0.30983]
[1736905882278,5.57678316,3229.5,3228.7,1.535]
[1736905882484,9.1302579,3229.5,3229.4,0.30979]
[1736905882987,9.1302579,3229.5,3229.4,1.84479]
[1736905883486,12.5440306,3229.5,3229.4,42.64479]
[1736905883682,7.08644179,3229.5,3229.4,42.64479]
[1736905885181,12.75492036,3229.5,3229.4,42.64479]
[1736905885379,0.30982,3229.1,3228.9,0.30984]
[1736905885585,0.30982,3229.1,3229.0,1.535]
[1736905886086,3.61307456,3229.1,3229.0,42.335]
[1736905886485,8.61307456,3229.1,3229.0,42.335]
[1736905886892,23.86337444,3229.1,3229.0,42.335]
[1736905887383,18.55355444,3229.1,3229.0,42.335]
[1736905887583,15.25029988,3229.1,3229.0,42.64483]
[1736905887988,15.25029988,3229.1,3229.0,46.08032159]
[1736905888287,10.11495988,3229.1,3229.0,51.08032159]
[1736905888495,7.94354988,3229.1,3229.0,51.08032159]
[1736905888696,6.92998988,3229.1,3229.0,51.08032159]
[1736905888891,7.10417331,3230.5,3230.3,0.30969]
[1736905889092,7.41385331,3230.5,3230.4,1.535]
[1736905889291,8.60112106,3230.5,3230.4,1.535]
[1736905889792,12.08303337,3230.5,3230.4,42.335]
[1736905889994,20.29083337,3230.5,3230.4,42.335]
[1736905890896,11.99939231,3230.5,3230.4,42.335]
[1736905891396,11.99939231,3230.5,3230.4,40.8]
[1736905891595,0.30974,3229.9,3229.8,1.535]
[1736905892099,0.30974,3229.9,3229.8,42.335]
[1736905892100,3.84592771,3229.9,3229.8,42.335]
[1736905892388,8.84592771,3229.9,3229.8,42.335]
[1736905893396,13.67945646,3229.9,3229.8,42.335]
[1736905893896,16.32280805,3229.9,3229.3,1.535]
[1736905894094,0.30979,3229.4,3229.1,0.30981]
[1736905894298,0.3098,3229.3,3229.2,40.8]
[1736905894489,3.53324381,3229.3,3229.2,40.8]
[1736905894891,0.3098,3229.3,3229.2,40.8]
[1736905895093,8.53324381,3229.3,3229.2,40.8]
[1736905895994,3.22344381,3229.3,3229.2,40.8]
[1736905896205,3.2078,3229.6,3229.5,0.30978]
[1736905896497,3.6852,3230.0,3229.9,0.30974]
[1736905896893,8.75968621,3230.0,3229.9,41.10974]
[1736905897089,3.75968621,3230.0,3229.9,41.10974]
[1736905897299,3.28228621,3230.0,3229.9,41.10974]
[1736905897493,0.4613,3230.6,3229.9,40.8]
[1736905897798,0.4613,3230.6,3230.1,3.51751]
[1736905897799,9.38828959,3230.3,3230.1,3.51751]
[1736905898099,9.38828959,3230.3,3229.9,40.8]
[1736905898100,11.04430906,3230.3,3229.9,40.8]
[1736905898397,0.30973,3230.0,3229.9,40.8]
[1736905898792,8.86415899,3230.0,3229.9,40.8]
[1736905899096,0.30982,3229.1,3228.9,1.535]
[1736905899499,0.30982,3229.1,3228.2,11.154]
[1736905899500,0.30984,3228.9,3228.5,0.30987]
[1736905899798,0.30987,3228.6,3228.5,1.535]
[1736905900099,6.58743599,3228.6,3228.2,11.154]
[1736905900302,0.30989,3228.3,3228.2,11.154]
[1736905900499,0.3099,3228.2,3228.1,1.535]
[1736905900699,0.3099,3228.2,3228.1,42.335]
[1736905900900,3.54473228,3228.2,3228.1,42.335]
[1736905901204,8.54473228,3228.2,3228.1,42.335]
[1736905901499,8.54473228,3228.2,3228.1,40.8]
[1736905901899,8.54473228,3228.2,3227.9,1.79593]
[1736905902106,3.54473228,3228.2,3227.9,0.30993]
[1736905902397,3.23483228,3228.2,3227.8,1.486]
[1736905902999,3.54473228,3228.2,3228.1,40.8]
[1736905903402,8.54473228,3228.2,3228.1,40.8]
[1736905903906,8.23483228,3228.2,3228.1,41.10991]
[1736905904207,11.23818132,3228.2,3228.1,44.31771]
[1736905905206,2.42327613,3228.3,3228.2,0.3099]
[1736905906099,0.99943033,3228.4,3228.3,0.30989]
[1736905906304,0.85949462,3228.4,3228.3,3.71632803]
[1736905906506,4.73666722,3228.8,3228.7,0.30986]
[1736905906702,4.73666722,3228.8,3228.7,49.21009803]
[1736905906901,3.38195722,3228.8,3228.7,54.21009803]
[1736905907107,1.60470722,3228.8,3228.7,54.21009803]
[1736905907309,1.60470722,3228.8,3228.7,49.21009803]
[1736905907607,6.04430906,3229.6,3228.7,53.90023803]
[1736905907909,6.04430906,3229.6,3229.5,3.2078]
[1736905908100,6.04430906,3229.6,3229.5,4.6938]
[1736905908510,6.04430906,3229.6,3229.5,45.4938]
[1736905908808,6.35407906,3229.6,3229.5,45.4938]
[1736905908997,6.35407906,3229.6,3229.5,1.486]
[1736905908998,0.30977,3229.6,3229.5,1.486]
[1736905909604,0.30981,3229.3,3229.0,0.30982]
[1736905909909,6.65825402,3229.2,3229.0,1.486]
[1736905910107,0.30986,3228.7,3228.5,42.286]
[1736905910413,0.30986,3228.6,3228.5,40.8]
[1736905910911,8.74360019,3228.6,3228.5,40.8]
[1736905912708,13.98994245,3228.6,3228.5,40.8]
[1736905913808,0.3099,3228.3,3228.1,0.30991]
[1736905914014,3.2078,3228.3,3228.0,1.486]
[1736905914207,0.30992,3228.1,3227.9,0.30993]
[1736905914410,4.31598622,3228.2,3228.0,0.30992]
[1736905914711,5.4869,3228.2,3228.1,40.8]
[1736905914913,0.4869,3228.2,3228.1,41.10991]
[1736905915114,3.8388547,3228.2,3228.1,41.10991]
[1736905915509,0.4869,3228.2,3228.1,41.10991]
[1736905916716,0.95193681,3228.2,3228.1,41.10991]
[1736905917718,11.80044861,3228.2,3228.1,41.10991]
[1736905918515,11.31354861,3228.2,3228.1,41.10991]
[1736905918723,0.46503681,3228.2,3228.1,41.10991]
[1736905919517,0.46503681,3228.2,3228.1,40.8]
[1736905919719,0.77493681,3228.2,3228.1,40.8]
[1736905919917,9.55710807,3228.2,3228.1,40.8]
[1736905920222,0.30992,3228.0,3227.9,1.486]
[1736905920610,0.30992,3228.0,3227.9,1.79593]
[1736905920611,5.0,3228.0,3227.9,1.79593]
[1736905921015,6.54269347,3228.2,3228.1,0.30991]
[1736905921210,6.06519347,3228.2,3228.1,0.30991]
[1736905921517,3.2078,3228.3,3228.2,0.3099]
[1736905922612,3.67281394,3228.3,3228.1,40.8]
[1736905922818,0.3099,3228.2,3228.1,40.8]
[1736905923318,11.80028685,3228.2,3228.1,40.8]
[1736905923515,8.53861769,3228.2,3228.1,41.10991]
[1736905923716,4.13521394,3228.3,3228.1,41.10991]
[1736905923717,3.67281394,3228.3,3228.2,0.3099]
[1736905923923,3.51769,3228.3,3228.2,0.3099]
[1736905924119,3.2078,3228.3,3228.2,0.3099]
[1736905924712,8.45453842,3228.3,3228.2,0.3099]
[1736905925116,8.76442842,3228.3,3228.2,41.1099]
[1736905925321,8.45453842,3228.3,3228.2,41.1099]
[1736905925721,3.2078,3228.3,3228.2,41.1099]
[1736905926326,6.06335194,3228.5,3228.4,0.30988]
[1736905926821,14.46227641,3228.5,3228.1,1.486]
[1736905927028,9.77215641,3228.5,3228.4,40.8]
[1736905927324,12.97995641,3228.5,3228.4,41.10988]
[1736905927516,17.97994641,3228.5,3228.4,40.8]
[1736905928121,22.48033364,3228.5,3228.4,40.8]
[1736905928822,13.77153917,3228.5,3228.4,41.10988]
[1736905929628,3.2078,3228.5,3228.4,41.10988]
[1736905929824,6.06335194,3228.7,3228.6,0.30986]
[1736905931127,0.81095,3228.8,3228.4,40.8]
[1736905931331,0.5011,3228.8,3228.7,0.30986]
[1736905931523,0.5011,3228.8,3228.4,40.8]
[1736905931725,3.2078,3228.5,3228.0,1.74692]
[1736905931925,3.51771,3228.1,3228.0,1.437]
[1736905932332,3.51771,3228.1,3228.0,40.8]
[1736905932333,8.51771,3228.1,3228.0,40.8]
[1736905932531,8.51771,3228.1,3228.0,41.10992]
[1736905932532,11.78973522,3228.1,3228.0,41.10992]
[1736905933432,12.09964522,3228.1,3228.0,41.10992]
[1736905934228,12.09964522,3228.1,3228.0,40.8]
[1736905935426,11.78973522,3228.1,3227.1,11.154]
[1736905935729,0.31,3227.3,3227.0,1.437]
[1736905935926,3.2078,3227.1,3227.0,0.31002]
[1736905936126,3.40567116,3227.2,3227.1,0.31001]
[1736905936332,2.76516116,3227.2,3227.1,5.31001]
[1736905936534,2.76516116,3227.2,3227.1,41.11001]
[1736905936830,0.9447,3227.9,3227.1,41.11001]
[1736905936831,1.25464,3227.9,3227.7,0.30995]
[1736905937031,0.9447,3227.9,3227.5,1.437]
[1736905937229,3.2078,3227.7,3227.4,1.437]
[1736905937430,3.2078,3227.7,3227.1,40.8]
[1736905937628,3.72669776,3227.6,3227.1,40.8]
[1736905937829,0.30998,3227.5,3227.4,0.30998]
[1736905938032,3.72669776,3227.6,3227.1,40.8]
[1736905938234,4.85306474,3227.3,3227.2,0.30999]
[1736905938729,8.13949217,3227.3,3227.2,0.30999]
[1736905939427,3.28642743,3227.3,3227.2,0.30999]
[1736905939631,6.49422743,3227.3,3227.1,40.8]
[1736905939831,6.49422743,3227.3,3227.2,0.31]
[1736905940630,11.34729217,3227.3,3227.1,40.8]
[1736905940826,0.7772,3227.2,3227.1,40.8]
[1736905941236,4.2151315,3227.2,3227.1,40.8]
[1736905941732,3.9051315,3227.2,3226.4,0.31007]
[1736905941936,3.2078,3226.6,3226.4,0.31007]
[1736905942133,3.2078,3226.6,3225.8,15.14014]
[1736905942134,0.4686,3226.5,3226.1,1.437]
[1736905942436,3.95405983,3226.5,3226.4,0.31008]
[1736905942629,3.95405983,3226.5,3226.4,41.11008]
[1736905944532,3.95405983,3226.5,3226.4,40.8]
[1736905944732,4.72582983,3226.5,3226.4,40.8]
[1736905946436,9.22377749,3226.5,3226.4,40.8]
[1736905946639,8.91370749,3226.5,3226.4,40.8]
[1736905947031,9.22377749,3226.5,3226.4,40.8]
[1736905947636,4.72582983,3226.5,3226.4,40.8]
[1736905948227,4.41575983,3226.5,3226.4,41.11008]
[1736905948428,3.95405983,3226.5,3226.4,41.11008]
[1736905948647,3.48545983,3226.5,3226.4,41.11008]
[1736905948944,4.84387575,3226.6,3226.5,0.31007]
[1736905949233,4.84387575,3226.6,3226.5,4.69883916]
[1736905949634,4.84387575,3226.6,3226.5,45.49883916]
[1736905950542,0.8025,3227.2,3226.5,45.18876916]
[1736905950543,0.4925,3227.2,3226.5,45.18876916]
[1736905950740,0.8025,3227.2,3226.5,45.96393916]
[1736905951045,3.5676824,3227.1,3227.0,3.26178916]
[1736905951340,8.05167575,3227.5,3227.4,0.30998]
[1736905952142,3.2078,3227.5,3227.4,41.10998]
[1736905952342,3.51777,3227.5,3227.4,40.8]
[1736905952728,3.2078,3227.5,3227.4,41.10998]
[1736905952930,6.8704666,3227.5,3227.4,40.8]
[1736905953131,7.3493666,3227.5,3227.4,40.8]
[1736905953340,10.76610576,3227.5,3226.5,1.437]
[1736905953539,3.2078,3226.8,3226.7,0.31005]
[1736905953735,0.31003,3227.0,3226.8,0.31003]
[1736905953944,0.31001,3227.1,3226.9,0.31002]
[1736905954136,3.35412038,3226.9,3226.8,0.31004]
[1736905954340,3.35412038,3226.9,3226.8,6.46960916]
[1736905954634,3.2078,3227.3,3227.2,0.31]
[1736905954839,3.2078,3227.3,3227.2,1.747]
[1736905955241,6.06059895,3227.4,3227.2,1.437]
[1736905955446,6.06059895,3227.4,3227.3,0.30999]
[1736905955852,0.4798,3228.0,3227.4,0.30998]
[1736905955853,4.84759526,3227.8,3227.4,0.30998]
[1736905956051,4.84759526,3227.8,3227.7,0.30995]
[1736905956557,4.84759526,3227.8,3227.7,8.51775]
[1736905956852,5.26e-06,3227.8,3227.7,8.51775]
[1736905957057,5.26e-06,3228.2,3228.1,0.30991]
[1736905957250,5.26e-06,3228.2,3228.1,48.70647916]
[1736905957547,4.33026421,3228.4,3228.3,0.30989]
[1736905957752,2.63917421,3228.4,3228.3,0.30989]
[1736905957951,2.63917421,3228.4,3228.3,5.30989]
[1736905957952,1.81285421,3228.4,3228.3,5.30989]
[1736905958153,0.98665421,3228.4,3228.3,5.30989]
[1736905958346,8.29144106,3228.9,3228.3,5.30989]
[1736905958549,0.9589,3230.3,3229.6,0.30977]
[1736905958745,7.26851404,3230.0,3229.9,0.30974]
[1736905958944,7.26851404,3230.0,3229.9,3.51754]
[1736905959152,7.26851404,3230.0,3229.9,4.95454]
[1736905960255,0.76398,3230.6,3229.9,4.6448]
[1736905960449,0.4543,3230.6,3230.3,3.5175]
[1736905961252,0.76397,3230.6,3230.3,3.2078]
[1736905961758,0.76397,3230.6,3230.4,40.8]
[1736905962557,0.76397,3230.6,3230.3,3.2078]
[1736905962558,0.4543,3230.6,3230.3,3.2078]
[1736905963255,4.1667,3231.2,3230.3,3.2078]
[1736905963457,0.30967,3230.7,3230.3,3.2078]
[1736905963648,4.1667,3231.2,3230.3,3.2078]
[1736905963649,0.30967,3230.6,3230.3,3.2078]
[1736905963853,0.30967,3230.7,3230.3,3.5175]
[1736905964060,0.30967,3230.6,3230.3,3.2078]
[1736905964361,0.30966,3230.8,3230.4,0.30969]
[1736905964545,0.30967,3230.7,3230.4,0.30969]
[1736905964747,3.58664619,3230.7,3230.3,3.5175]
[1736905964948,0.30967,3230.7,3230.3,3.5175]
[1736905965357,4.1667,3231.2,3230.3,3.2078]
[1736905965561,0.30968,3230.6,3230.3,3.5175]
[1736905966552,0.30968,3230.6,3230.3,3.2078]
[1736905966961,3.54877235,3230.5,3230.3,3.2078]
[1736905967257,3.54877235,3230.5,3230.3,3.5175]
[1736905967860,3.54877235,3230.5,3230.3,3.2078]
[1736905968356,0.77289,3230.4,3230.3,3.2078]
[1736905968864,0.30972,3230.1,3230.0,40.8]
[1736905969154,3.75774076,3230.1,3230.0,40.8]
[1736905970853,0.30978,3229.5,3229.4,3.2078]
[1736905971060,0.77434,3230.0,3229.0,3.2078]
[1736905971061,0.3098,3229.3,3229.0,3.2078]
[1736905971362,3.75215912,3229.2,3229.1,40.8]
[1736905977761,0.77455,3229.1,3228.0,12.574]
[1736905977965,0.30989,3228.4,3228.1,0.30991]
[1736905978366,3.39459444,3228.3,3228.1,0.30991]
[1736905978560,3.70448444,3228.3,3228.0,11.161]
[1736905978765,0.30992,3228.1,3227.9,1.413]
[1736905979162,3.45477389,3228.0,3227.5,40.8]
[1736905979362,0.30994,3227.9,3227.6,1.72295]
[1736905979762,3.38162246,3228.2,3227.5,40.8]
[1736905979763,3.38162246,3227.8,3227.5,40.8]
[1736905979963,0.30996,3227.6,3227.5,40.8]
[1736905980169,4.47675,3228.3,3227.5,40.8]
[1736905980170,3.38162246,3228.1,3227.5,40.8]
[1736905980565,0.30992,3228.1,3227.6,0.30996]
[1736905980765,0.30992,3228.0,3227.7,0.30995]
[1736905981470,3.67948884,3227.9,3227.7,0.30995]
[1736905981671,3.67948884,3227.9,3227.6,0.30996]
[1736905981867,0.30993,3227.9,3227.6,0.30996]
[1736905982070,3.36955884,3228.1,3227.5,40.8]
[1736905982270,0.30995,3227.7,3227.5,41.10997]
[1736905982467,3.43012071,3228.0,3227.5,41.10997]
[1736905982772,0.30995,3227.8,3227.6,0.30996]
[1736905983165,3.43012071,3227.7,3227.6,0.30996]
[1736905983365,4.0119,3228.3,3227.6,0.30996]
[1736905983667,3.66213415,3228.2,3228.0,0.30992]
[1736905983877,3.2078,3228.7,3228.1,1.413]
[1736905984069,0.30984,3228.9,3228.7,0.30985]
[1736905984266,3.35222415,3228.8,3228.2,6.1580525]
[1736905984467,3.2078,3229.2,3228.2,6.1580525]
[1736905984667,0.30986,3228.7,3228.5,0.30987]
[1736905984870,3.60475519,3228.7,3228.5,0.30987]
[1736905985065,3.2078,3228.8,3228.2,3.2078]
[1736905985268,0.30989,3228.3,3228.2,3.2078]
[1736905985477,3.2078,3228.3,3228.1,40.8]
[1736905985773,3.2078,3228.3,3227.6,4.6208]
[1736905985774,0.30995,3227.7,3227.6,4.6208]
[1736905985973,3.2078,3227.9,3227.3,0.4836]
[1736905986164,0.30998,3227.4,3227.3,0.4836]
[1736905986368,0.30997,3227.5,3227.3,0.79359]
[1736905986674,3.2078,3227.5,3227.4,40.8]
[1736905986871,3.51777,3227.5,3227.4,40.8]
[1736905987572,0.30997,3227.5,3227.4,40.8]
[1736905991471,0.30997,3227.6,3227.4,41.10997]
[1736905991672,0.30995,3227.8,3227.6,0.30996]
[1736905991874,3.56364133,3227.5,3227.4,0.30998]
[1736905992179,3.56364133,3227.8,3227.7,0.30994]
[1736905992473,3.2078,3228.3,3227.7,40.8]
[1736905992675,3.2078,3228.3,3228.0,0.30992]
[1736905992974,0.30994,3227.8,3227.7,40.8]
[1736905993175,0.30999,3227.3,3227.1,3.51781]
[1736905993370,1.5049,3227.7,3227.1,3.2078]
[1736905993570,3.56946322,3227.8,3227.3,40.8]
[1736905993870,3.55754618,3227.6,3227.5,3.51777]
[1736905994070,3.55754618,3228.0,3227.8,0.30994]
[1736905994267,0.30993,3228.0,3227.8,0.30994]
[1736905994464,3.86746618,3228.1,3227.9,0.30992]
[1736905994668,3.2078,3228.3,3227.9,0.30993]
[1736905994864,3.46416224,3228.0,3227.9,0.30993]
[1736905995071,3.77408224,3228.1,3227.9,41.10993]
[1736905995274,0.30992,3228.1,3227.9,41.10993]
[1736905995477,0.30991,3228.2,3228.0,0.30992]